bitfinex/quotes_ETHUSD_20220218
["timestamp","ask_amount","ask_price","bid_price","bid_amount"]
[1645162177186,0.2469,2893.3,2893.0,0.00510715]
[1645162177990,0.2469,2893.3,2893.0,0.00807089]
[1645162179031,0.2469,2893.3,2893.0,0.00510715]
[1645162179230,0.2469,2893.3,2893.0,0.00807089]
[1645162180237,0.2469,2893.3,2893.0,0.00807097]
[1645162181237,0.2469,2893.3,2893.0,0.00510715]
[1645162181636,0.2469,2893.3,2893.0,0.00807097]
[1645162182487,0.2469,2893.3,2893.0,0.00510715]
[1645162182883,0.2469,2893.3,2893.0,0.00807097]
[1645162183685,0.2469,2893.3,2893.0,0.00510715]
[1645162183884,0.2469,2893.3,2893.0,0.00807096]
[1645162184987,0.2469,2893.3,2893.0,0.00510715]
[1645162185187,0.2469,2893.3,2893.0,0.00807096]
[1645162186039,0.2469,2893.3,2893.0,0.00412982]
[1645162186241,0.2469,2893.3,2893.1,1.47296532]
[1645162186443,1.1954,2893.7,2893.3,0.42822029]
[1645162186839,0.1728,2894.2,2893.3,0.42822029]
[1645162186840,0.00504882,2893.8,2893.3,0.42822029]
[1645162187046,0.00504882,2894.0,2893.4,1.4727985]
[1645162187443,0.01026723,2894.1,2893.4,1.4727985]
[1645162187643,0.01026723,2894.1,2893.4,1.47576212]
[1645162188451,0.01026723,2894.1,2893.3,0.42822029]
[1645162188844,21.26026723,2894.1,2893.6,0.00296352]
[1645162189047,0.1726,2894.0,2893.6,0.00296352]
[1645162189246,0.00504882,2893.9,2893.6,0.00296352]
[1645162189685,0.00504882,2893.9,2893.3,0.42822029]
[1645162190087,0.00504882,2893.9,2893.6,0.00296352]
[1645162190888,0.00504882,2893.9,2893.3,0.42822029]
[1645162191089,0.00504882,2893.9,2893.6,0.00296351]
[1645162192085,0.00504882,2893.9,2893.3,0.42822029]
[1645162192289,0.00504882,2893.9,2893.6,0.00296351]
[1645162193330,0.00504882,2893.9,2893.3,0.42822029]
[1645162193526,0.00504882,2893.9,2893.6,0.00296351]
[1645162194531,0.00504882,2893.9,2893.4,1.47287881]
[1645162194732,0.00504882,2893.9,2893.6,0.00296351]
[1645162194932,0.01026723,2894.1,2893.6,0.00296351]
[1645162195734,0.01026723,2894.1,2893.4,1.47287881]
[1645162195936,0.01026723,2894.1,2893.7,0.00296346]
[1645162196979,0.01026723,2894.1,2893.4,1.47287881]
[1645162197186,0.01026723,2894.1,2893.8,0.00296343]
[1645162197787,20.25,2894.0,2893.8,0.00296343]
[1645162198185,1.0,2893.9,2893.4,1.47287881]
[1645162198387,1.499,2893.9,2893.4,1.47287881]
[1645162198589,0.499,2893.9,2893.4,1.47287881]
[1645162198992,1.01026723,2894.1,2893.4,1.47287881]
[1645162199187,0.01026723,2894.1,2893.4,1.47287881]
[1645162199588,0.01026723,2894.1,2893.6,0.00296351]
[1645162200591,0.01026723,2894.1,2893.4,1.47287881]
[1645162200830,0.01026723,2894.1,2893.7,0.00296346]
[1645162201229,0.01026723,2894.1,2893.7,1.47584227]
[1645162201429,0.01026723,2894.1,2893.8,1.47287881]
[1645162201834,0.01026723,2894.1,2893.4,3.5]
[1645162202036,0.00521841,2894.1,2893.8,0.00296341]
[1645162202936,0.00521841,2894.1,2893.4,1.47275479]
[1645162203237,0.00521841,2894.1,2893.3,3.92822029]
[1645162203238,0.00521841,2894.1,2893.8,0.00296341]
[1645162204040,0.00521841,2894.1,2893.5,3.5]
[1645162204242,0.00504882,2894.2,2893.6,1.47275479]
[1645162204478,0.00504882,2894.2,2893.8,0.00296341]
[1645162204679,0.00504882,2894.2,2893.8,1.4718963]
[1645162204877,0.00504882,2894.2,2893.5,3.5]
[1645162205081,0.00504882,2894.4,2893.5,3.5]
[1645162205282,0.00504882,2894.4,2893.5,4.46973121]
[1645162206583,0.00504882,2894.4,2893.5,3.5]
[1645162207985,0.00821678,2894.4,2893.7,0.00316878]
[1645162208732,0.30821678,2894.4,2893.7,0.00316878]
[1645162208933,0.00504882,2894.4,2893.5,4.43783833]
[1645162209140,0.00504882,2894.4,2894.0,0.19637243]
[1645162209141,0.00806186,2894.4,2894.0,0.19637243]
[1645162209341,0.016024,2894.6,2894.4,0.01899034]
[1645162212200,0.98566808,2895.0,2894.4,0.01899034]
[1645162212998,0.00316788,2894.8,2894.4,0.01899034]
[1645162213797,0.98566808,2895.0,2894.4,0.01899034]
[1645162214008,0.00316794,2894.7,2894.4,0.01899034]
[1645162214403,0.00316794,2894.7,2894.6,0.19637243]
[1645162214644,0.00316794,2894.7,2894.6,0.39274486]
[1645162215011,0.98566808,2895.0,2894.6,0.39274486]
[1645162215204,0.00316791,2894.8,2894.6,0.39274486]
[1645162216144,0.98566808,2895.0,2894.6,0.39274486]
[1645162216343,0.00316788,2894.8,2894.6,0.39274486]
[1645162217342,0.98566808,2895.0,2894.6,0.39274486]
[1645162217544,0.00316788,2894.8,2894.6,0.39274486]
[1645162218544,0.98566808,2895.0,2894.6,0.39274486]
[1645162218744,0.00316788,2894.8,2894.6,0.39274486]
[1645162219343,0.00316788,2894.8,2894.6,0.19637243]
[1645162219583,0.9853828,2895.0,2894.4,0.01899034]
[1645162219789,0.9853828,2895.0,2894.7,0.19637243]
[1645162221189,0.9885506,2895.0,2894.7,0.19637243]
[1645162222295,0.9853828,2895.0,2894.7,3.69637243]
[1645162222493,0.9853828,2895.0,2894.7,4.62207243]
[1645162222494,0.9885506,2895.0,2894.7,4.62207243]
[1645162224543,0.9853828,2895.0,2894.7,4.62207243]
[1645162224748,0.9853828,2895.0,2894.8,1.47190768]
[1645162224749,0.9885506,2895.0,2894.8,1.47190768]
[1645162224948,0.9885506,2895.0,2894.9,3.69637243]
[1645162225147,0.9885506,2895.0,2894.9,5.36465254]
[1645162225346,0.9885506,2895.0,2894.9,1.86465254]
[1645162225546,0.9531678,2895.0,2894.9,1.86465254]
[1645162225747,0.95,2895.0,2894.9,1.86465254]
[1645162225952,0.95,2895.0,2894.9,5.36465254]
[1645162226548,0.95,2895.0,2894.9,1.86465254]
[1645162226748,0.95,2895.0,2894.9,5.36465254]
[1645162227891,0.95502358,2895.0,2894.9,1.86465254]
[1645162228087,0.95502358,2895.0,2894.9,5.36465254]
[1645162228490,0.95502358,2895.0,2894.9,1.86465254]
[1645162229191,0.95502358,2895.0,2894.9,5.36465254]
[1645162229392,0.0253889,2895.8,2895.2,0.614946]
[1645162229593,0.01266906,2895.5,2895.2,0.614946]
[1645162230392,0.01266906,2895.5,2895.4,0.39274486]
[1645162230593,0.0253889,2895.8,2895.4,1.52134385]
[1645162230841,0.00316752,2895.5,2895.4,1.52134385]
[1645162231738,0.0253889,2895.8,2895.4,1.52134385]
[1645162231947,0.0253889,2895.8,2895.4,0.39274486]
[1645162232141,0.00316746,2895.6,2895.4,0.39274486]
[1645162232944,0.0253889,2895.8,2895.4,0.39274486]
[1645162233147,0.00316743,2895.6,2895.4,0.39274486]
[1645162234149,0.0253889,2895.8,2895.4,0.39274486]
[1645162234585,0.00316743,2895.6,2895.4,0.39274486]
[1645162235390,20.2753889,2895.8,2895.4,0.19637243]
[1645162235588,20.25,2895.6,2895.2,0.614946]
[1645162235787,21.4226,2895.5,2895.2,0.614946]
[1645162236597,21.34232451,2895.3,2895.2,0.614946]
[1645162236790,22.34232451,2895.3,2895.2,0.614946]
[1645162236991,2.09232451,2895.3,2895.2,0.614946]
[1645162237393,1.0,2895.4,2895.2,0.614946]
[1645162237995,1.00316754,2895.4,2895.2,0.614946]
[1645162238240,21.25316754,2895.4,2895.2,0.614946]
[1645162238439,2.09995882,2895.4,2895.2,0.614946]
[1645162238641,0.00316754,2895.4,2895.2,0.614946]
[1645162239046,0.1726,2895.5,2895.2,0.614946]
[1645162239346,0.00316754,2895.4,2895.2,0.614946]
[1645162240139,1.88648265,2895.7,2895.2,0.614946]
[1645162240140,1.58648265,2895.7,2895.2,0.614946]
[1645162240344,1.499,2895.7,2895.2,0.614946]
[1645162240545,0.00316754,2895.4,2895.2,0.614946]
[1645162240941,0.00316754,2895.4,2895.3,0.19637243]
[1645162241441,0.1726,2895.6,2895.3,0.19637243]
[1645162241640,0.00316752,2895.5,2895.3,0.19637243]
[1645162242697,0.1726,2895.6,2895.3,0.19637243]
[1645162242892,0.00316749,2895.5,2895.3,0.19637243]
[1645162243896,1.73439118,2895.7,2895.3,0.19637243]
[1645162244095,0.00316749,2895.5,2895.3,0.19637243]
[1645162244994,0.00499846,2895.6,2895.3,0.19637243]
[1645162245194,0.00316749,2895.5,2895.3,0.19637243]
[1645162245834,0.00316749,2895.5,2895.4,0.19637243]
[1645162246238,0.00499846,2895.6,2895.4,0.39274486]
[1645162246438,0.00316746,2895.6,2895.4,0.39274486]
[1645162247139,20.25316746,2895.6,2895.4,0.39274486]
[1645162247338,20.25,2895.6,2895.4,0.39274486]
[1645162247737,1.0,2895.5,2895.4,0.39274486]
[1645162247937,1.17759846,2895.5,2895.4,0.39274486]
[1645162248144,1.33091872,2895.5,2895.4,0.39274486]
[1645162249888,0.17759846,2895.5,2895.4,0.39274486]
[1645162250084,0.00499846,2895.5,2895.4,0.39274486]
[1645162250284,0.00654436,2895.6,2895.4,0.39274486]
[1645162250692,0.00654436,2895.6,2895.4,0.19637243]
[1645162251084,0.15831872,2895.6,2895.5,0.19637243]
[1645162251288,1.15649016,2895.6,2895.5,0.19637243]
[1645162252296,1.15332026,2895.6,2895.5,0.19637243]
[1645162252699,21.40332026,2895.6,2895.5,0.19637243]
[1645162252895,21.40332026,2895.6,2895.5,0.19536545]
[1645162253735,21.70332026,2895.6,2895.5,0.19536545]
[1645162254543,21.40332026,2895.6,2895.5,0.19536545]
[1645162254843,21.70332026,2895.6,2895.5,0.19536545]
[1645162255445,1.45332026,2895.6,2895.5,0.19536545]
[1645162255644,1.3,2895.6,2895.5,0.19536545]
[1645162255849,0.50399846,2895.7,2895.5,0.19536545]
[1645162256045,0.80716833,2895.7,2895.4,0.19637243]
[1645162256244,0.50716833,2895.7,2895.6,0.19536545]
[1645162256848,0.50716833,2895.7,2895.6,0.39173788]
[1645162257088,0.50399846,2895.7,2895.6,0.39173788]
[1645162257692,0.65731872,2895.7,2895.6,0.39173788]
[1645162259986,0.50399846,2895.7,2895.6,0.39173788]
[1645162260185,0.65731872,2895.7,2895.6,0.39173788]
[1645162265587,20.90731872,2895.7,2895.6,0.39173788]
[1645162265788,21.90731872,2895.7,2895.6,0.39173788]
[1645162265987,1.65731872,2895.7,2895.6,0.39173788]
[1645162266191,1.50399846,2895.7,2895.6,0.39173788]
[1645162266386,20.90731872,2895.7,2895.6,0.39173788]
[1645162266787,21.90731872,2895.7,2895.6,0.39173788]
[1645162269139,23.07130872,2895.7,2895.6,0.39173788]
[1645162271349,22.20731872,2895.7,2895.6,0.39173788]
[1645162271545,1.95731872,2895.7,2895.6,0.39173788]
[1645162271740,1.80399846,2895.7,2895.6,0.39173788]
[1645162271989,0.80399846,2895.7,2895.6,0.39173788]
[1645162272593,0.50399846,2895.7,2895.6,0.39173788]
[1645162273192,0.50399846,2895.7,2895.6,1.86356327]
[1645162273393,0.00499846,2895.7,2895.6,1.86356327]
[1645162273591,0.03335288,2895.8,2895.6,1.86356327]
[1645162273795,0.03038736,2895.8,2895.7,1.47182539]
[1645162273995,0.03335292,2895.8,2895.7,1.47182539]
[1645162274191,0.03335292,2895.8,2895.7,1.66719084]
[1645162274393,0.03335292,2895.8,2895.7,1.86356327]
[1645162274992,0.03038736,2895.8,2895.7,1.86356327]
[1645162275945,0.0253889,2895.8,2895.7,1.86356327]
[1645162287014,0.0253889,2895.8,2895.7,1.86203322]
[1645162287225,0.0253889,2895.8,2895.7,0.19637243]
[1645162287420,0.0253889,2895.8,2895.7,0.39020783]
[1645162293643,0.0253889,2895.8,2895.7,1.86199942]
[1645162301242,20.42870916,2895.8,2895.7,0.39020783]
[1645162302498,21.42870916,2895.8,2895.7,0.39020783]
[1645162303295,21.92770916,2895.8,2895.7,0.39020783]
[1645162304795,22.22770916,2895.8,2895.7,0.39020783]
[1645162306642,21.72870916,2895.8,2895.7,0.39020783]
[1645162306844,21.42870916,2895.8,2895.7,0.39020783]
[1645162307843,21.42870916,2895.8,2895.7,0.38936735]
[1645162308243,21.42870916,2895.8,2895.7,0.1938354]
[1645162308443,21.42870916,2895.8,2895.7,0.38936735]
[1645162308842,21.72870916,2895.8,2895.7,0.38936735]
[1645162309344,0.47870916,2895.8,2895.7,0.38936735]
[1645162309587,0.0253889,2895.8,2895.7,0.38936735]
[1645162309988,0.17870916,2895.8,2895.7,0.38936735]
[1645162310390,0.0253889,2895.8,2895.7,0.38936735]
[1645162310595,0.0253889,2895.8,2895.7,1.86107725]
[1645162319596,20.42870916,2895.8,2895.7,1.86107725]
[1645162319804,20.92770916,2895.8,2895.7,0.38936735]
[1645162319999,21.92770916,2895.8,2895.7,0.38936735]
[1645162320199,1.85030916,2895.8,2895.7,0.38936735]
[1645162320399,0.85030916,2895.8,2895.7,0.38936735]
[1645162320604,1.6969889,2895.8,2895.7,0.38936735]
[1645162320860,1.85030916,2895.8,2895.7,0.38936735]
[1645162321260,1.67770916,2895.8,2895.7,0.38936735]
[1645162322263,0.5243889,2895.8,2895.7,0.38936735]
[1645162322664,0.5243889,2895.8,2895.7,1.86114962]
[1645162322968,0.0253889,2895.8,2895.7,1.86114962]
[1645162323664,0.00279139,2895.9,2895.8,0.04480395]
[1645162323864,0.00279139,2895.9,2895.8,1.51658622]
[1645162324264,0.01616235,2896.3,2895.8,1.51658622]
[1645162324265,0.00499846,2896.3,2895.8,1.71042162]
[1645162324490,0.00499846,2896.3,2895.9,1.47178227]
[1645162324688,0.00279134,2896.0,2895.9,1.47178227]
[1645162325490,0.00499846,2896.3,2895.9,1.47178227]
[1645162325691,0.00279129,2896.1,2895.9,1.47178227]
[1645162326690,0.00499846,2896.3,2895.9,1.47178227]
[1645162326892,0.00499846,2896.3,2896.0,0.88190773]
[1645162327095,0.00279127,2896.1,2896.0,0.88190773]
[1645162327295,0.00279127,2896.1,2896.0,2.3533808]
[1645162327897,1.00499846,2896.6,2896.0,2.3533808]
[1645162328097,0.00278895,2896.2,2896.1,1.47147307]
[1645162329144,0.00499846,2896.6,2896.1,1.47147307]
[1645162329343,0.0027889,2896.3,2896.1,1.47147307]
[1645162329741,0.0027889,2896.3,2896.2,0.19553195]
[1645162329942,0.0027889,2896.3,2896.2,1.66700502]
[1645162330346,0.00499846,2896.6,2896.2,1.66700502]
[1645162330645,0.00278885,2896.4,2896.2,0.19553195]
[1645162331045,0.00278885,2896.4,2896.3,1.47142616]
[1645162331248,0.19779995,2896.7,2896.4,2.0]
[1645162331453,0.19779995,2896.7,2896.5,1.47142616]
[1645162331454,0.04447969,2896.7,2896.5,1.47142616]
[1645162331647,0.04447969,2896.7,2896.4,1.47142616]
[1645162331845,0.04447969,2896.7,2896.5,1.47142616]
[1645162332303,0.04447969,2896.7,2896.5,2.33463616]
[1645162332603,0.0025427,2896.8,2896.7,1.72642]
[1645162332797,0.0025427,2896.8,2896.7,3.19784616]
[1645162333399,7.438177,2897.7,2897.2,1.08241558]
[1645162333599,7.4432624,2897.7,2897.2,1.08241558]
[1645162333799,0.04433703,2897.6,2896.7,1.72642]
[1645162333999,0.04433703,2897.6,2896.8,1.47087785]
[1645162334200,0.04433703,2897.6,2896.3,6.88435626]
[1645162334201,0.0437686,2897.5,2896.9,1.47087785]
[1645162334398,0.0437686,2897.5,2896.5,2.3547504]
[1645162334599,0.04320018,2897.4,2897.0,0.1938354]
[1645162334797,1.17050515,2897.4,2897.0,0.1938354]
[1645162334999,0.04263176,2897.3,2897.2,0.19553195]
[1645162335500,0.0458007,2897.3,2897.2,0.19553195]
[1645162335942,0.0508861,2897.3,2897.2,0.19553195]
[1645162336343,0.04771716,2897.3,2897.2,0.19553195]
[1645162339798,0.04771716,2897.3,2897.2,0.38936735]
[1645162347208,0.00497347,2897.6,2897.2,0.38936735]
[1645162347409,0.0101708,2897.3,2897.2,0.38936735]
[1645162347605,0.0101708,2897.3,2897.0,1.71084339]
[1645162347803,0.0101708,2897.3,2897.2,0.38936735]
[1645162348903,0.0101708,2897.3,2897.2,1.25247735]
[1645162349902,0.00497347,2897.6,2897.3,0.01781351]
[1645162350104,0.00497347,2897.6,2897.4,1.1807018]
[1645162350302,7.388177,2897.7,2897.4,1.1807018]
[1645162350303,7.39315047,2897.7,2897.4,1.1807018]
[1645162350503,7.3,2897.7,2897.4,1.1807018]
[1645162351140,7.3031665,2897.7,2897.4,1.1807018]
[1645162351944,7.3,2897.7,2897.3,0.01781351]
[1645162352148,6.46333554,2898.2,2897.5,3.0]
[1645162352350,4.30773554,2898.2,2897.6,3.5]
[1645162352549,4.30773554,2898.2,2897.3,3.51781351]
[1645162352747,4.30773554,2898.2,2897.4,1.47046009]
[1645162353149,4.30773554,2898.2,2898.1,1.00658489]
[1645162353150,0.01693554,2898.2,2898.1,1.00658489]
[1645162354055,0.01693554,2898.2,2897.8,0.38936735]
[1645162354690,0.01693554,2898.2,2897.9,0.0016392]
[1645162355591,0.01693554,2898.2,2897.8,0.38936735]
[1645162355792,0.02008969,2898.2,2897.9,0.00315452]
[1645162356792,0.01693554,2898.2,2897.8,0.38936735]
[1645162356993,0.02008969,2898.2,2897.9,0.00315452]
[1645162357996,0.01693554,2898.2,2897.8,0.38936735]
[1645162358243,0.02008969,2898.2,2897.9,0.00315452]
[1645162358440,0.02008969,2898.2,2898.0,0.19553195]
[1645162359246,0.01693554,2898.2,2898.0,0.19553195]
[1645162359443,0.02008971,2898.2,2898.0,0.19868644]
[1645162360447,0.01693554,2898.2,2898.0,0.19553195]
[1645162360649,0.02008971,2898.2,2898.0,0.19868644]
[1645162361751,0.01693554,2898.2,2898.0,0.19553195]
[1645162361990,0.02008971,2898.2,2898.0,0.19868644]
[1645162362800,0.01693554,2898.2,2898.0,0.19553195]
[1645162363000,0.02008971,2898.2,2898.0,0.19868644]
[1645162363399,0.02008971,2898.2,2898.0,0.00315449]
[1645162363799,0.02008971,2898.2,2898.1,0.38936735]
[1645162363999,0.01693554,2898.2,2898.1,0.38936735]
[1645162364200,0.02008971,2898.2,2898.1,0.38936735]
[1645162365301,0.01693554,2898.2,2898.1,0.38936735]
[1645162366348,0.01693554,2898.2,2898.1,3.61076735]
[1645162375560,0.01693554,2898.2,2898.1,5.08112595]
[1645162388548,0.00315175,2898.3,2898.2,0.02924728]
[1645162388847,0.00315175,2898.3,2898.2,1.49960588]
[1645162389250,0.0049486,2898.5,2898.4,1.16041679]
[1645162389448,7.3549486,2898.6,2898.4,1.16041679]
[1645162389647,7.3049486,2898.6,2898.4,2.63077539]
[1645162389948,7.3049486,2898.6,2898.4,1.16041679]
[1645162390747,7.30810015,2898.6,2898.2,0.41861463]
[1645162390950,7.30810015,2898.6,2898.3,1.47034738]
[1645162391551,7.3049486,2898.6,2898.3,1.47034738]
[1645162391990,7.30810018,2898.6,2898.3,1.47034738]
[1645162392796,7.3049486,2898.6,2898.3,1.47034738]
[1645162393196,7.30810018,2898.6,2898.3,1.47034738]
[1645162393996,7.3049486,2898.6,2898.3,1.47034738]
[1645162394195,7.30810018,2898.6,2898.3,1.47034738]
[1645162394597,7.30810018,2898.6,2898.4,0.38936735]
[1645162394801,7.30810018,2898.6,2898.5,1.47034738]
[1645162394998,7.30315158,2898.6,2898.5,1.47034738]
[1645162395197,7.3,2898.6,2898.5,1.47034738]
[1645162395398,7.3,2898.6,2898.4,0.38936735]
[1645162395602,7.3049486,2898.6,2898.4,0.38936735]
[1645162396552,7.30810015,2898.6,2898.4,0.38936735]
[1645162396753,7.30810015,2898.6,2898.5,1.47039879]
[1645162396952,7.30315155,2898.6,2898.5,1.47039879]
[1645162397552,7.3,2898.6,2898.5,1.47039879]
[1645162399900,7.3,2898.6,2898.5,1.85976614]
[1645162402508,7.3,2898.6,2898.2,0.02924728]
[1645162402509,23.25,2898.5,2898.2,0.02924728]
[1645162402706,20.25,2898.3,2898.2,0.02924728]
[1645162402906,20.89843993,2898.3,2898.2,0.02924728]
[1645162406991,0.64843993,2898.3,2898.2,0.02924728]
[1645162407204,0.499,2898.3,2898.2,0.02924728]
[1645162408801,0.00315169,2898.4,2898.2,0.02924728]
[1645162409203,0.00315169,2898.4,2898.3,0.1273]
[1645162409603,3.5049486,2898.6,2898.3,0.1273]
[1645162410002,0.00315164,2898.5,2898.3,0.1273]
[1645162410203,20.25,2898.4,2898.3,0.1273]
[1645162410404,21.89843993,2898.4,2898.3,0.1273]
[1645162410854,21.89843993,2898.4,2898.1,3.2214]
[1645162410855,20.25,2898.2,2898.1,3.2214]
[1645162411055,20.89843993,2898.2,2898.1,3.2214]
[1645162411256,21.20338853,2898.2,2898.1,3.2214]
[1645162411453,22.20338853,2898.2,2898.1,3.2214]
[1645162411852,22.20338853,2898.2,2898.0,0.00315222]
[1645162412057,21.39943993,2898.1,2897.4,0.84906026]
[1645162412256,20.25,2897.9,2897.4,0.84906026]
[1645162412656,20.25,2897.9,2897.3,0.01781351]
[1645162413056,0.499,2898.0,2897.3,0.01781351]
[1645162413458,0.499,2898.0,2897.5,0.00315238]
[1645162413657,4.46920012,2898.2,2897.5,0.00315238]
[1645162414257,4.46920012,2898.2,2897.6,0.96535831]
[1645162414500,4.4660486,2898.2,2897.6,0.96535831]
[1645162414700,4.46920025,2898.2,2897.7,0.00315223]
[1645162415708,4.4660486,2898.2,2897.6,0.96535831]
[1645162415909,4.4692003,2898.2,2897.8,0.00315218]
[1645162416911,4.4660486,2898.2,2897.3,0.67941107]
[1645162417110,4.46920033,2898.2,2897.9,0.00315215]
[1645162418012,4.4611,2898.2,2897.4,1.55698531]
[1645162418242,4.46425175,2898.2,2897.9,0.00315212]
[1645162420350,4.4611,2898.2,2897.4,1.85698531]
[1645162420748,4.46425175,2898.2,2897.9,0.00315212]
[1645162421554,4.4611,2898.2,2897.4,1.85698531]
[1645162421998,4.46425175,2898.2,2897.9,0.00315212]
[1645162422800,4.4611,2898.2,2897.5,1.47051004]
[1645162423000,4.46425175,2898.2,2897.9,0.00315212]
[1645162424110,4.4611,2898.2,2897.5,1.47051004]
[1645162424304,4.11825175,2898.2,2897.9,0.00315212]
[1645162425205,4.1151,2898.2,2897.5,1.47051004]
[1645162425403,4.11825175,2898.2,2897.9,0.00315212]
[1645162426447,4.1151,2898.2,2897.5,1.47051004]
[1645162426653,4.11825175,2898.2,2897.9,0.00315212]
[1645162427648,4.11825175,2898.2,2897.5,1.47051004]
[1645162427649,4.1151,2898.2,2897.5,1.47051004]
[1645162428049,4.11825175,2898.2,2897.9,0.00315212]
[1645162428749,4.4151,2898.2,2897.5,1.47051004]
[1645162428948,4.4151,2898.2,2897.9,0.00315212]
[1645162428949,4.41825175,2898.2,2897.9,0.00315212]
[1645162429998,4.41825175,2898.2,2897.5,1.47051004]
[1645162429999,4.4151,2898.2,2897.5,1.47051004]
[1645162430199,4.41825175,2898.2,2897.9,0.00315212]
[1645162430699,4.11825175,2898.2,2897.9,0.00315212]
[1645162431302,4.1151,2898.2,2897.5,1.47051004]
[1645162431504,4.11825175,2898.2,2897.9,0.00315212]
[1645162432502,4.1151,2898.2,2897.5,1.47051004]
[1645162432703,4.11825175,2898.2,2897.9,0.00315212]
[1645162433548,4.1151,2898.2,2897.5,1.47051004]
[1645162433950,4.11825175,2898.2,2897.9,0.00315212]
[1645162434750,4.1151,2898.2,2897.5,1.47051004]
[1645162434949,4.11825175,2898.2,2897.9,0.00315212]
[1645162435952,4.11825175,2898.2,2897.5,1.47051004]
[1645162435953,4.1151,2898.2,2897.5,1.47051004]
[1645162436152,4.1151,2898.2,2897.6,1.47051004]
[1645162436353,4.11825175,2898.2,2897.9,0.00315212]
[1645162436554,0.00315175,2898.2,2897.9,0.00315212]
[1645162436853,0.00315175,2898.2,2897.9,1.47366216]
[1645162437108,0.00315175,2898.2,2898.0,1.47051004]
[1645162437309,4.99262476,2898.6,2898.1,1.47051004]
[1645162437310,1.0,2898.5,2898.1,1.47051004]
[1645162437508,1.0,2898.5,2897.7,0.92758797]
[1645162437509,0.00315175,2898.2,2897.9,0.00315212]
[1645162438407,0.0049486,2898.4,2897.8,1.47048449]
[1645162438605,0.00315175,2898.2,2897.9,0.00315212]
[1645162438803,0.00315175,2898.2,2897.9,1.47363661]
[1645162439004,0.00315175,2898.2,2898.0,1.47048449]
[1645162439204,0.00315175,2898.2,2898.1,1.47048449]
[1645162439604,3.5049486,2898.4,2898.1,1.47048449]
[1645162439808,0.00315175,2898.3,2898.2,1.47048449]
[1645162440005,0.00315175,2898.3,2898.0,0.00315212]
[1645162440850,0.16032476,2898.4,2897.5,1.47048449]
[1645162441049,20.25315175,2898.3,2898.0,0.00315212]
[1645162441250,20.25,2898.1,2898.0,0.00315212]
[1645162441451,20.70537616,2898.1,2898.0,0.00315212]
[1645162441757,21.70537616,2898.1,2898.0,0.00315212]
[1645162441953,21.70537616,2898.1,2897.8,1.47048449]
[1645162441954,1.45537616,2898.1,2897.9,1.47048449]
[1645162442159,1.3,2898.1,2898.0,1.47048449]
[1645162442460,3.65537616,2898.2,2898.0,1.47048449]
[1645162442461,1.15852791,2898.2,2898.0,1.47048449]
[1645162442656,1.15852791,2898.2,2897.9,0.00315212]
[1645162442657,4.95852791,2898.2,2898.1,1.47048449]
[1645162442856,4.95852791,2898.2,2897.9,0.00315212]
[1645162443056,1.45852791,2898.2,2897.9,0.00315212]
[1645162443256,1.45537616,2898.2,2897.3,1.47062303]
[1645162443456,4.95852791,2898.2,2897.9,0.00315212]
[1645162443655,1.45852791,2898.2,2897.9,0.00315212]
[1645162444055,1.30315175,2898.2,2897.9,0.00315212]
[1645162444256,0.30315175,2898.2,2897.9,0.00315212]
[1645162444499,0.3,2898.2,2897.4,1.47062303]
[1645162444801,0.00315175,2898.2,2897.9,0.00315212]
[1645162445008,0.14131475,2898.2,2897.9,0.00315212]
[1645162445701,0.32777616,2898.3,2897.8,1.47062303]
[1645162445901,0.0030572,2898.2,2897.9,0.00305756]
[1645162446102,0.0030572,2898.2,2897.9,1.47368059]
[1645162446301,0.0030572,2898.2,2898.0,1.47062303]
[1645162446501,0.0030572,2898.2,2897.9,0.00305756]
[1645162446502,0.0009429,2898.0,2897.9,0.00305756]
[1645162446803,0.0009429,2898.0,2897.4,1.47062303]
[1645162447003,0.0009429,2898.0,2897.8,0.00305761]
[1645162448006,0.0009429,2898.0,2897.4,1.47062303]
[1645162448248,0.0009429,2898.0,2897.8,0.00305764]
[1645162448855,0.0009429,2898.0,2897.8,1.47368067]
[1645162449050,0.0009429,2898.0,2897.9,1.47062303]
[1645162449250,0.0009429,2898.0,2897.4,1.47062303]
[1645162449451,0.0009429,2898.0,2897.8,0.00294018]
[1645162450450,0.0009429,2898.0,2897.4,1.47062303]
[1645162450751,0.0009429,2898.0,2897.8,0.00294018]
[1645162451552,0.0009429,2898.0,2897.4,1.47062303]
[1645162451752,0.0009429,2898.0,2897.5,1.47062303]
[1645162452001,0.0009429,2898.0,2897.8,0.00294018]
[1645162452813,0.0009429,2898.0,2897.4,1.47062303]
[1645162453008,0.0009429,2898.0,2897.5,1.47062303]
[1645162453213,0.0009429,2898.0,2897.6,1.47062303]
[1645162453409,0.0009429,2898.0,2897.3,2.13222059]
[1645162453811,0.0009429,2898.0,2897.3,2.43222059]
[1645162454011,0.0009429,2898.0,2897.4,1.47062303]
[1645162454212,0.0009429,2898.0,2897.5,1.47062303]
[1645162454412,0.0009429,2898.0,2897.6,1.47062303]
[1645162454613,0.0009429,2898.0,2897.7,1.47062303]
[1645162454812,0.0009429,2898.0,2897.8,1.47062303]
[1645162455010,0.0009429,2898.0,2897.9,1.47062303]
[1645162455212,0.0009429,2898.0,2897.4,0.66159756]
[1645162455417,0.0009429,2898.0,2897.5,1.47062303]
[1645162455611,0.0009429,2898.0,2897.2,2.92648126]
[1645162455612,0.0009429,2898.0,2897.7,0.00315229]
[1645162455880,0.0009429,2898.0,2897.7,1.47377532]
[1645162456076,0.0009429,2898.0,2897.8,1.47062303]
[1645162456277,0.0009429,2898.0,2897.7,0.00315229]
[1645162456476,0.0009429,2898.0,2897.5,1.47062303]
[1645162456678,0.0009429,2898.0,2897.2,2.2648837]
[1645162456679,0.0009429,2898.0,2897.7,0.00315229]
[1645162457078,0.0009429,2898.0,2897.7,1.47377532]
[1645162457278,0.0009429,2898.0,2897.8,1.47062303]
[1645162457479,0.0009429,2898.0,2897.9,1.47062303]
[1645162458085,0.0009429,2898.0,2897.7,0.00315229]
[1645162459716,0.0009429,2898.0,2897.7,0.00315232]
[1645162460115,0.0009429,2898.0,2897.4,1.47062303]
[1645162460316,0.0009429,2898.0,2897.3,0.66159756]
[1645162460317,0.0009429,2898.0,2897.7,0.0027211]
[1645162460719,0.0009429,2898.0,2897.7,1.47334413]
[1645162460918,0.0009429,2898.0,2897.8,1.47062303]
[1645162461116,0.0009429,2898.0,2897.9,1.47062303]
[1645162461518,0.0009429,2898.0,2897.7,0.00272112]
[1645162462524,0.0009429,2898.0,2897.3,2.13222059]
[1645162462824,0.0009429,2898.0,2897.7,0.0027211]
[1645162463656,0.0009429,2898.0,2897.5,1.47062303]
[1645162463857,0.0009429,2898.0,2897.6,1.47062303]
[1645162464059,0.0009429,2898.0,2897.7,1.47338765]
[1645162464258,0.0009429,2898.0,2897.8,1.47062303]
[1645162464460,0.0009429,2898.0,2897.7,0.00276462]
[1645162464461,0.0009429,2898.0,2897.9,1.47062303]
[1645162464857,0.0009429,2898.0,2897.4,0.66159756]